bitfinex/quotes_BTCUSD_20250907
["timestamp","ask_amount","ask_price","bid_price","bid_amount"]
[1757223826746,0.34065156,110780.0,110770.0,0.12747234]
[1757223826980,0.11856952,110780.0,110770.0,0.12747234]
[1757223827176,0.11856952,110780.0,110770.0,0.12972926]
[1757223827417,0.29910752,110780.0,110770.0,0.12747234]
[1757223828070,0.29910752,110780.0,110770.0,0.12972926]
[1757223828273,0.182538,110780.0,110770.0,0.44692505]
[1757223828472,0.332018,110780.0,110770.0,0.44466813]
[1757223829085,0.331018,110780.0,110770.0,0.44466813]
[1757223829438,0.330018,110780.0,110770.0,0.44466813]
[1757223830878,0.330018,110780.0,110770.0,0.12747234]
[1757223831106,0.330018,110780.0,110770.0,0.12972926]
[1757223834158,0.330018,110780.0,110770.0,0.44692505]
[1757223834365,0.330018,110780.0,110770.0,0.44466813]
[1757223836421,0.330018,110780.0,110770.0,0.12747234]
[1757223836762,0.330018,110780.0,110770.0,0.12972926]
[1757223845421,0.330018,110780.0,110770.0,0.12747234]
[1757223857246,0.330018,110780.0,110770.0,0.12440234]
[1757223857454,0.335238,110780.0,110770.0,0.12228234]
[1757223858086,0.335238,110780.0,110770.0,0.12430234]
[1757223858691,0.336238,110780.0,110770.0,0.12430234]
[1757223858894,0.337238,110780.0,110770.0,0.12430234]
[1757223859860,0.336238,110780.0,110770.0,0.12430234]
[1757223860078,0.337238,110780.0,110770.0,0.12430234]
[1757223862453,0.332018,110780.0,110770.0,0.12430234]
[1757223862690,0.333998,110780.0,110770.0,0.12430234]
[1757223862898,0.337238,110780.0,110770.0,0.12430234]
[1757223866175,0.337238,110780.0,110770.0,0.12228234]
[1757223866612,0.337238,110780.0,110770.0,0.12430234]
[1757223869496,0.337238,110780.0,110770.0,0.12228234]
[1757223870275,0.187758,110780.0,110770.0,0.12228234]
[1757223870480,0.337278,110780.0,110770.0,0.12228234]
[1757223872388,0.187758,110780.0,110770.0,0.12228234]
[1757223872605,0.337278,110780.0,110770.0,0.12228234]
[1757223886308,0.337238,110780.0,110770.0,0.12228234]
[1757223891658,0.337238,110780.0,110770.0,0.09516032]
[1757223899055,0.337238,110780.0,110770.0,0.12228307]
[1757223916872,0.27967399,110780.0,110770.0,0.09516032]
[1757223917053,0.42915399,110780.0,110770.0,0.09516032]
[1757223917657,0.45627826,110780.0,110770.0,0.09516032]
[1757223924287,0.30679826,110780.0,110770.0,0.09516032]
[1757223924498,0.45627826,110780.0,110770.0,0.09516032]
[1757223927165,0.23080217,110780.0,110770.0,0.09516032]
[1757223927366,0.41330017,110780.0,110770.0,0.09516032]
[1757223932323,0.41627017,110780.0,110770.0,0.09516032]
[1757223932661,0.26679017,110780.0,110770.0,0.09516032]
[1757223932861,0.41623017,110780.0,110770.0,0.09516032]
[1757223935749,0.41326017,110780.0,110770.0,0.09516032]
[1757223936879,0.41623017,110780.0,110770.0,0.09516032]
[1757223939121,0.26679017,110780.0,110770.0,0.09516032]
[1757223939322,0.41623017,110780.0,110770.0,0.09516032]
[1757223945656,0.26679017,110780.0,110770.0,0.09516032]
[1757223946174,0.41623017,110780.0,110770.0,0.09516032]
[1757223946345,0.26679017,110780.0,110770.0,0.09516032]
[1757223946550,0.41623017,110780.0,110770.0,0.09516032]
[1757223946950,0.26679017,110780.0,110770.0,0.09516032]
[1757223947154,0.41623017,110780.0,110770.0,0.09516032]
[1757223954540,0.26679017,110780.0,110770.0,0.09516032]
[1757223954750,0.41326017,110780.0,110770.0,0.09516032]
[1757223955145,0.26382017,110780.0,110770.0,0.09516032]
[1757223955356,0.41326017,110780.0,110770.0,0.09516032]
[1757223965756,0.41326017,110780.0,110770.0,0.09725032]
[1757223968651,0.48262017,110780.0,110770.0,0.09516032]
[1757223981213,0.48582017,110780.0,110770.0,0.09516032]
[1757223981828,0.84675899,110780.0,110770.0,0.09516032]
[1757223984898,0.89675899,110780.0,110770.0,0.09516032]
[1757223993542,0.80914776,110780.0,110770.0,0.09516032]
[1757223993845,0.83658395,110780.0,110770.0,0.09516032]
[1757224001194,0.83338395,110780.0,110770.0,0.09516032]
[1757224017866,0.6487078,110780.0,110770.0,0.09516032]
[1757224018421,0.8292458,110780.0,110770.0,0.09516032]
[1757224018923,0.929709,110780.0,110770.0,0.09516032]
[1757224019708,0.929399,110780.0,110770.0,0.10023032]
[1757224020319,0.779879,110780.0,110770.0,0.10023032]
[1757224020527,0.931349,110780.0,110770.0,0.10023032]
[1757224023023,0.931349,110780.0,110770.0,0.09821032]
[1757224024196,0.931349,110780.0,110770.0,0.09516032]
[1757224024608,0.931349,110780.0,110770.0,0.09821032]
[1757224025837,0.929359,110780.0,110770.0,0.10023032]
[1757224026960,0.931309,110780.0,110770.0,0.10023032]
[1757224033340,0.931309,110780.0,110770.0,0.09821032]
[1757224033549,0.931309,110780.0,110770.0,0.09516032]
[1757224049445,0.931309,110780.0,110770.0,0.09836032]
[1757224051515,0.931309,110780.0,110770.0,0.10045032]
[1757224055949,0.931309,110780.0,110770.0,0.09836032]
[1757224060730,0.931309,110780.0,110770.0,0.09516032]
[1757224062322,0.931309,110780.0,110770.0,0.09812032]
[1757224065108,0.931309,110780.0,110770.0,0.10016032]
[1757224065459,0.929359,110780.0,110770.0,0.10016032]
[1757224075310,0.931339,110780.0,110770.0,0.10016032]
[1757224076126,0.57040018,110780.0,110770.0,0.10016032]
[1757224081299,0.91040018,110780.0,110770.0,0.10016032]
[1757224086128,0.91040018,110780.0,110770.0,0.08646032]
[1757224088193,0.91040018,110780.0,110770.0,0.08426032]
[1757224114859,0.90842018,110780.0,110770.0,0.08426032]
[1757224118887,0.70894018,110780.0,110770.0,0.08426032]
[1757224119206,0.85846018,110780.0,110770.0,0.08426032]
[1757224135543,0.64593451,110780.0,110770.0,0.08426032]
[1757224136243,0.64593451,110780.0,110770.0,0.11138511]
[1757224138991,0.64789451,110780.0,110770.0,0.11138511]
[1757224144622,0.64789451,110780.0,110770.0,0.10934511]
[1757224144912,0.64789451,110780.0,110770.0,0.10638511]
[1757224146096,0.7913305,110780.0,110770.0,0.07926032]
[1757224146296,0.81845693,110780.0,110770.0,0.07926032]
[1757224148098,0.81945693,110780.0,110770.0,0.07926032]
[1757224148739,0.81845693,110780.0,110770.0,0.07926032]
[1757224149163,0.81945693,110780.0,110770.0,0.07926032]
[1757224154493,0.81793693,110780.0,110770.0,0.07926032]
[1757224159702,0.81797693,110780.0,110770.0,0.07926032]
[1757224162908,0.66841693,110780.0,110770.0,0.07926032]
[1757224163107,0.81797693,110780.0,110770.0,0.07926032]
[1757224177956,0.81793693,110780.0,110770.0,0.07926032]
[1757224196599,0.81789693,110780.0,110770.0,0.07926032]
[1757224213973,0.57142042,110780.0,110770.0,0.07926032]
[1757224235358,0.35756858,110780.0,110770.0,0.08247032]
[1757224235723,0.35756858,110780.0,110770.0,0.10959675]
[1757224248544,0.35752858,110780.0,110770.0,0.10959675]
[1757224252286,0.69752858,110780.0,110770.0,0.10959675]
[1757224260181,0.72465501,110780.0,110770.0,0.10959675]
[1757224260677,0.72465501,110780.0,110770.0,0.11164675]
[1757224266791,0.74559383,110780.0,110770.0,0.10638675]
[1757224267386,0.74559383,110780.0,110770.0,0.07926032]
[1757224267617,0.74559383,110780.0,110770.0,0.08236032]
[1757224270453,0.74559383,110780.0,110770.0,0.07926032]
[1757224271088,0.74559383,110780.0,110770.0,0.08236032]
[1757224286714,0.63796325,110780.0,110770.0,0.08236032]
[1757224286922,0.78744325,110780.0,110770.0,0.08236032]
[1757224289440,0.78744325,110780.0,110770.0,0.07926032]
[1757224290071,0.87935924,110780.0,110770.0,1e-08]
[1757224292026,0.87935924,110780.0,110770.0,1e-08]
[1757224304576,0.69886124,110780.0,110770.0,1e-08]
[1757224304722,0.87939924,110780.0,110770.0,1e-08]
[1757224316806,0.91191703,110780.0,110770.0,1e-08]
[1757224317149,0.94351607,110780.0,110770.0,1e-08]
[1757224323138,0.79403607,110780.0,110770.0,1e-08]
[1757224323350,0.94351607,110780.0,110770.0,1e-08]
[1757224324780,0.91099828,110780.0,110770.0,1e-08]
[1757224325525,0.87939924,110780.0,110770.0,1e-08]
[1757224326376,0.72991924,110780.0,110770.0,1e-08]
[1757224326637,0.87939924,110780.0,110770.0,1e-08]
[1757224327821,0.72991924,110780.0,110770.0,1e-08]
[1757224328158,0.87939924,110780.0,110770.0,1e-08]
[1757224341951,0.72991924,110780.0,110770.0,1e-08]
[1757224342154,0.87939924,110780.0,110770.0,1e-08]
[1757224344775,0.53939924,110780.0,110770.0,1e-08]
[1757224347140,0.87939924,110780.0,110770.0,1e-08]
[1757224369793,0.87939924,110780.0,110770.0,0.00312001]
[1757224375714,0.87939924,110780.0,110770.0,0.00509001]
[1757224385042,0.87939924,110780.0,110770.0,0.00312001]
[1757224388562,0.87939924,110780.0,110770.0,1e-08]
[1757224393651,0.1805706,110760.0,110750.0,0.09774098]
[1757224393894,0.3994506,110760.0,110750.0,0.09774098]
[1757224394137,0.3994506,110760.0,110750.0,0.09973098]
[1757224395462,0.4004506,110760.0,110750.0,0.09973098]
[1757224395645,0.4004506,110760.0,110750.0,0.03224886]
[1757224415867,0.2509706,110760.0,110750.0,0.03224886]
[1757224416081,0.4004506,110760.0,110750.0,0.03224886]
[1757224420824,0.2509706,110760.0,110750.0,0.03224886]
[1757224421077,0.4004506,110760.0,110750.0,0.03224886]
[1757224427486,0.2509706,110760.0,110750.0,0.03224886]
[1757224427757,0.4004506,110760.0,110750.0,0.03224886]
[1757224453163,0.1750944,110760.0,110750.0,0.03224886]
[1757224453382,0.355665,110760.0,110750.0,0.03224886]
[1757224457633,0.357645,110760.0,110750.0,0.03224886]
[1757224465188,0.355665,110760.0,110750.0,0.03224886]
[1757224477294,0.357645,110760.0,110750.0,0.03224886]
[1757224500232,0.357645,110760.0,110750.0,0.02712886]
[1757224501892,0.357645,110760.0,110750.0,0.03229886]
[1757224525680,0.208165,110760.0,110750.0,0.03229886]
[1757224525927,0.355625,110760.0,110750.0,0.03229886]
[1757224529089,0.357605,110760.0,110750.0,0.03229886]
[1757224532605,0.208165,110760.0,110750.0,0.03229886]
[1757224532746,0.355625,110760.0,110750.0,0.03229886]
[1757224540475,0.14944,110760.0,110750.0,0.03229886]
[1757224540880,0.3300106,110760.0,110750.0,0.03229886]
[1757224546677,0.3300106,110760.0,110750.0,0.03229886]
[1757224550243,0.1805706,110760.0,110750.0,0.03229886]
[1757224550537,0.3300106,110760.0,110750.0,0.03229886]
[1757224562840,0.1805706,110760.0,110750.0,0.35185355]
[1757224563077,0.3300106,110760.0,110750.0,0.34959622]
[1757224564028,0.1805706,110760.0,110750.0,0.34959622]
[1757224564280,0.3300106,110760.0,110750.0,0.44151221]
[1757224567475,0.3300106,110760.0,110750.0,0.62209911]
[1757224569330,0.1805706,110760.0,110750.0,0.62209911]
[1757224575297,0.1805706,110760.0,110750.0,0.44151221]
[1757224582264,0.1805706,110760.0,110750.0,0.12421485]
[1757224582511,0.1805706,110760.0,110750.0,0.12647218]
[1757224583263,0.1805706,110760.0,110750.0,0.44376954]
[1757224583489,0.1805706,110760.0,110750.0,0.44151221]
[1757224587564,0.1805706,110760.0,110750.0,0.70801221]
[1757224588220,0.1805706,110760.0,110750.0,0.88859911]
[1757224592068,0.1805706,110760.0,110750.0,0.57130175]
[1757224592961,0.1805706,110760.0,110750.0,0.88859911]
[1757224595448,0.1805706,110760.0,110750.0,1.03799911]
[1757224598912,0.1805706,110760.0,110750.0,0.88859911]
[1757224599124,0.1805706,110760.0,110750.0,1.03799911]
[1757224601656,0.1805706,110760.0,110750.0,1.03789362]
[1757224604029,0.1805706,110760.0,110750.0,0.85730672]
[1757224607539,0.1805706,110760.0,110750.0,0.88849362]
[1757224607837,0.1805706,110760.0,110750.0,1.03789362]
[1757224619253,0.1805706,110760.0,110750.0,0.88849362]
[1757224619430,0.1805706,110760.0,110750.0,1.03789362]
[1757224625891,0.1805706,110760.0,110750.0,0.88849362]
[1757224626114,0.1805706,110760.0,110750.0,1.03789362]
[1757224628389,0.1805706,110760.0,110750.0,1.03889362]
[1757224631672,0.1805706,110760.0,110750.0,0.72170175]
[1757224648553,0.1805706,110760.0,110750.0,0.54111485]
[1757224674261,0.1805706,110760.0,110750.0,0.85834452]
[1757224700016,0.1805706,110760.0,110750.0,1.03893142]
[1757224700222,0.32382128,110770.0,110750.0,1.03893142]
[1757224700467,0.1805706,110760.0,110750.0,0.79448543]
[1757224700721,0.1805706,110760.0,110750.0,0.91675657]
[1757224701148,0.1805706,110760.0,110750.0,0.91991657]
[1757224701371,0.1805706,110760.0,110750.0,0.94703962]
[1757224701844,0.1805706,110760.0,110750.0,1.03795561]
[1757224702840,0.1805706,110760.0,110750.0,1.03995561]
[1757224703768,0.1805706,110760.0,110750.0,1.04095561]
[1757224723600,0.1805706,110760.0,110750.0,0.72372594]
[1757224724595,0.32382128,110770.0,110750.0,0.72372594]
[1757224724810,0.32382128,110770.0,110760.0,0.09191599]
[1757224725010,0.32382128,110770.0,110760.0,0.09500599]
[1757224725216,0.32382128,110770.0,110760.0,0.09715599]
[1757224725417,0.32382128,110770.0,110760.0,0.12427904]
[1757224726243,0.32580128,110770.0,110760.0,0.12427904]
[1757224728135,0.32382128,110770.0,110760.0,0.12427904]
[1757224729922,0.32382128,110770.0,110760.0,0.39077904]
[1757224736906,0.32580128,110770.0,110760.0,0.39077904]
[1757224739824,0.32580128,110770.0,110760.0,0.38553904]
[1757224741130,0.32580128,110770.0,110760.0,0.39077904]
[1757224744387,0.32382128,110770.0,110760.0,0.39077904]
[1757224750858,0.09992014,110770.0,110760.0,0.39077904]
[1757224751070,0.28048857,110770.0,110760.0,0.39077904]
[1757224756301,0.28246857,110770.0,110760.0,0.39077904]
[1757224759595,0.28048857,110770.0,110760.0,0.39077904]
[1757224761082,0.32996843,110770.0,110760.0,0.39077904]
[1757224761297,0.33194843,110770.0,110760.0,0.39077904]
[1757224761976,0.32996843,110770.0,110760.0,0.39077904]
[1757224766942,0.33195843,110770.0,110760.0,0.39077904]
[1757224773458,0.32996843,110770.0,110760.0,0.39077904]
[1757224790042,0.32996843,110770.0,110760.0,0.39077904]
[1757224800723,0.32996843,110770.0,110760.0,0.41171786]
[1757224806679,0.18056843,110770.0,110760.0,0.41171786]
[1757224807309,0.1896115,110780.0,110770.0,0.02093882]
[1757224807529,0.3390515,110780.0,110770.0,0.11816173]
[1757224807730,0.3390515,110780.0,110770.0,0.12016173]
[1757224807938,0.3390515,110780.0,110770.0,0.29676323]
[1757224808149,0.3390515,110780.0,110770.0,0.29450631]
[1757224811993,0.3390515,110780.0,110770.0,0.14502631]
[1757224812194,0.3390515,110780.0,110770.0,0.14728323]
[1757224812368,0.3390515,110780.0,110770.0,0.15861601]
[1757224816467,0.3390515,110780.0,110770.0,0.14728323]
[1757224816676,0.3390515,110780.0,110770.0,0.15861019]
[1757224820022,0.3410315,110780.0,110770.0,0.15861019]
[1757224825700,0.3410315,110780.0,110770.0,0.15435327]
[1757224827639,0.3410315,110780.0,110770.0,0.15661019]
[1757224833593,0.3410315,110780.0,110770.0,0.15861019]
[1757224838887,0.3410315,110780.0,110770.0,0.15635327]
[1757224839775,0.3410315,110780.0,110770.0,0.15861019]
[1757224842170,0.3410315,110780.0,110770.0,0.15130327]
[1757224842353,0.3410315,110780.0,110770.0,0.13997631]
[1757224847873,0.3437115,110780.0,110770.0,0.04806032]
[1757224851173,0.3410315,110780.0,110770.0,0.04806032]
[1757224856361,0.3409915,110780.0,110770.0,0.04806032]
[1757224860078,0.13384304,110780.0,110770.0,0.04806032]
[1757224860500,0.31439595,110780.0,110770.0,0.04806032]
[1757224860684,0.32342285,110780.0,110770.0,0.04806032]
[1757224864136,0.32342285,110780.0,110770.0,0.05131032]
[1757224864332,0.32455285,110780.0,110770.0,0.05131032]
[1757224865771,0.32455285,110780.0,110770.0,0.04806032]
[1757224870946,0.32455285,110780.0,110770.0,0.05113032]
[1757224873495,0.32455285,110780.0,110770.0,0.04806032]
[1757224883501,0.32455285,110780.0,110770.0,0.05113032]
[1757224883870,0.32455285,110780.0,110770.0,0.04806032]
[1757224893196,0.1805543,110770.0,110760.0,0.2665]
[1757224893373,0.1823943,110770.0,110760.0,0.2665]
[1757224893601,0.1823943,110770.0,110760.0,0.28743882]
[1757224894142,0.35896065,110770.0,110760.0,0.28743882]
[1757224897829,0.3553757,110770.0,110760.0,0.28743882]
[1757224899100,0.3553757,110770.0,110760.0,0.02093882]
[1757224901396,0.70440341,110770.0,110740.0,0.02712636]
[1757224901608,0.18061952,110730.0,110720.0,0.09864669]
[1757224901844,0.18061952,110730.0,110720.0,0.19263268]
[1757224902145,0.18061952,110730.0,110720.0,0.19565268]
[1757224902711,0.18972214,110730.0,110720.0,0.19565268]
[1757224902916,0.18972214,110730.0,110720.0,0.21705817]
[1757224903298,0.18972214,110730.0,110720.0,0.19611935]
[1757224904457,0.18972214,110730.0,110720.0,0.21705817]
[1757224907191,0.18061952,110730.0,110720.0,0.21705817]
[1757224907800,0.18061952,110730.0,110720.0,0.48355817]
[1757224909393,0.18061952,110730.0,110720.0,0.48455817]
[1757224909842,0.18061952,110730.0,110720.0,0.48355817]
[1757224910087,0.18061952,110730.0,110720.0,0.48455817]
[1757224913371,0.3496187,110740.0,110720.0,0.39264218]
[1757224913593,0.18061952,110730.0,110720.0,0.39264218]
[1757224913820,0.18061952,110730.0,110720.0,0.12614218]
[1757224915439,0.18061952,110730.0,110720.0,0.12514218]
[1757224916902,0.18061952,110730.0,110720.0,0.12614218]
[1757224927732,0.18061952,110730.0,110720.0,0.44358991]
[1757224935592,0.33005952,110730.0,110720.0,0.44358991]
[1757224939546,0.18061952,110730.0,110720.0,0.44358991]
[1757224939776,0.33005952,110730.0,110720.0,0.44358991]
[1757224943393,0.33005952,110730.0,110720.0,0.71008991]
[1757224953974,0.33005952,110730.0,110720.0,0.39264218]
[1757224954405,0.33005952,110730.0,110720.0,0.71008991]
[1757224955061,0.33005952,110730.0,110720.0,0.39264218]
[1757224955210,0.33005952,110730.0,110720.0,0.44358991]
[1757224956535,0.33005952,110730.0,110720.0,0.12614218]
[1757224956747,0.33005952,110730.0,110720.0,0.44358991]
[1757224958015,0.33005952,110730.0,110720.0,0.12614218]
[1757224958218,0.33005952,110730.0,110720.0,0.44358991]
[1757224963195,0.18061952,110730.0,110720.0,0.44358991]
[1757224963562,0.33005952,110730.0,110720.0,0.44358991]
[1757224964163,0.18061952,110730.0,110720.0,0.44358991]
[1757224964340,0.33005952,110730.0,110720.0,0.44358991]
[1757224965540,0.33005952,110730.0,110720.0,0.44352478]
[1757224965944,0.18061952,110730.0,110720.0,0.44352478]
[1757224966147,0.33009952,110730.0,110720.0,0.44352478]
[1757224969078,0.33009952,110730.0,110720.0,0.12614218]
[1757224969284,0.33009952,110730.0,110720.0,0.44352478]
[1757224980325,0.33009952,110730.0,110720.0,0.12614218]
[1757224980492,0.33009952,110730.0,110720.0,0.44352478]
[1757224980986,0.35723415,110730.0,110720.0,0.44352478]
[1757224981264,0.35723415,110730.0,110720.0,0.12614218]
[1757224981426,0.35723415,110730.0,110720.0,0.44352478]
[1757224982665,0.35723415,110730.0,110720.0,0.12614218]
[1757224982868,0.35723415,110730.0,110720.0,0.44352478]
[1757224983246,0.35723415,110730.0,110720.0,0.12614218]
[1757224985618,0.35723415,110730.0,110720.0,0.44352478]
[1757224988068,0.35723415,110730.0,110720.0,0.4706594]
[1757224994329,0.33009952,110730.0,110720.0,0.4706594]
[1757224997301,0.33009952,110730.0,110720.0,0.1532768]
[1757225002492,0.33009952,110730.0,110720.0,0.12105218]
[1757225002866,0.35723557,110730.0,110720.0,0.12105218]
[1757225004395,0.76663557,110730.0,110720.0,0.12105218]
[1757225005730,0.56810405,110730.0,110720.0,0.12105218]
[1757225006000,0.74872357,110730.0,110720.0,0.12105218]
[1757225012034,0.61715557,110730.0,110720.0,0.12407218]
[1757225012270,0.76667557,110730.0,110720.0,0.12407218]
[1757225015982,0.76667557,110730.0,110720.0,0.12622218]
[1757225016615,0.76671557,110730.0,110720.0,0.12622218]
[1757225017695,0.69731557,110730.0,110720.0,0.12622218]
[1757225021866,0.69735557,110730.0,110720.0,0.44360478]
[1757225022299,0.69735557,110730.0,110720.0,0.15335678]
[1757225022744,0.69735557,110730.0,110720.0,0.16465371]
[1757225027110,0.69735557,110730.0,110720.0,0.15335678]
[1757225040641,0.67021952,110730.0,110720.0,0.15335678]
[1757225040998,0.67021952,110730.0,110720.0,0.12622218]
[1757225045124,0.67021952,110730.0,110720.0,0.12622218]
[1757225046040,0.20018101,110740.0,110730.0,0.02093882]
[1757225046249,0.34067795,110740.0,110730.0,0.02626882]
[1757225046447,0.68067795,110740.0,110730.0,0.02626882]
[1757225046676,0.65354335,110740.0,110730.0,0.02626882]
[1757225046954,0.65354335,110740.0,110730.0,0.05340114]
[1757225047166,0.65454335,110740.0,110730.0,0.05340114]
[1757225071126,0.4500967,110740.0,110730.0,0.05340114]
[1757225072028,0.63071484,110740.0,110730.0,0.05340114]
[1757225101354,0.67109814,110740.0,110730.0,0.05340114]
[1757225107957,0.67109814,110740.0,110730.0,0.05565888]
[1757225112444,0.47290169,110740.0,110730.0,0.05565888]
[1757225112646,0.33109814,110740.0,110730.0,0.05565888]
[1757225113039,0.33109814,110740.0,110730.0,0.05340114]
[1757225142705,0.33109814,110740.0,110730.0,0.02626882]
[1757225144992,0.67109814,110740.0,110730.0,0.02626882]
[1757225151049,0.67109814,110740.0,110730.0,0.02416882]
[1757225151257,0.67109814,110740.0,110730.0,0.02411882]
[1757225151626,0.67109814,110740.0,110730.0,0.02093882]
[1757225161416,0.69823191,110740.0,110730.0,0.02093882]
[1757225166390,0.18061952,110730.0,110720.0,0.24228049]
[1757225166572,0.33005952,110730.0,110720.0,0.24228049]
[1757225167397,0.33005952,110730.0,110720.0,0.24431049]
[1757225168802,0.33005952,110730.0,110720.0,0.24531049]
[1757225175470,0.33005952,110730.0,110720.0,0.24328049]
[1757225176086,0.33005952,110730.0,110720.0,0.1513645]
[1757225176310,0.33005952,110730.0,110720.0,0.1481845]
[1757225178117,0.33005952,110730.0,110720.0,0.1514145]
[1757225179958,0.18061952,110730.0,110720.0,0.1514145]
[1757225180138,0.33005952,110730.0,110720.0,0.1514145]
[1757225183131,0.33906007,110730.0,110720.0,0.1514145]
[1757225186142,0.33906007,110730.0,110720.0,0.1481845]
[1757225186555,0.33906007,110730.0,110720.0,0.1514145]
[1757225214829,0.14713815,110730.0,110720.0,0.1514145]
[1757225215033,0.32775767,110730.0,110720.0,0.1514145]
[1757225223964,0.32775767,110730.0,110720.0,0.12428218]
[1757225224170,0.3548934,110730.0,110720.0,0.12428218]
[1757225232623,0.3548934,110730.0,110720.0,0.10011336]
[1757225240837,0.6948934,110730.0,110720.0,0.10011336]
[1757225242069,0.6948934,110730.0,110720.0,0.10003082]
[1757225249330,0.6948934,110730.0,110720.0,0.09988912]
[1757225253366,0.68589285,110730.0,110720.0,0.09988912]
[1757225253667,0.69492344,110730.0,110720.0,0.09988912]
[1757225257571,0.70622584,110730.0,110720.0,0.09988912]
[1757225259791,0.55678584,110730.0,110720.0,0.09988912]
[1757225259998,0.70626584,110730.0,110720.0,0.09988912]
[1757225279055,0.70622584,110730.0,110720.0,0.09988912]
[1757225282393,0.55678584,110730.0,110720.0,0.09988912]
[1757225282606,0.70622584,110730.0,110720.0,0.10289912]
[1757225289250,0.70622584,110730.0,110720.0,0.09988912]
[1757225290308,0.70622584,110730.0,110720.0,0.09988912]
[1757225291151,0.47967894,110730.0,110720.0,0.09988912]
[1757225291361,0.68743667,110730.0,110720.0,0.09988912]
[1757225292654,0.77935266,110730.0,110720.0,0.09988912]
[1757225294387,0.62991266,110730.0,110720.0,0.09988912]
[1757225294619,0.77939266,110730.0,110720.0,0.09988912]
[1757225294831,0.62991266,110730.0,110720.0,0.09988912]
[1757225295042,0.77943266,110730.0,110720.0,0.09988912]
[1757225295253,0.53799667,110730.0,110720.0,0.10514912]
[1757225295695,0.68755667,110730.0,110720.0,0.10514912]
[1757225298224,0.66041846,110730.0,110720.0,0.10514912]
[1757225329443,0.66041846,110730.0,110720.0,0.09988912]
[1757225329644,0.68986548,110730.0,110720.0,0.09988912]
[1757225329874,0.71700485,110730.0,110720.0,0.09988912]
[1757225330168,0.68755783,110730.0,110720.0,0.09988912]
[1757225330588,0.68755783,110730.0,110720.0,0.09888912]
[1757225331059,0.68855783,110730.0,110720.0,0.09888912]
[1757225331921,0.68955783,110730.0,110720.0,0.09888912]
[1757225332334,0.68855783,110730.0,110720.0,0.09888912]
[1757225332705,0.68955783,110730.0,110720.0,0.09888912]
[1757225336010,0.78147382,110730.0,110720.0,0.09888912]
[1757225346306,0.18065215,110710.0,110700.0,0.003382]
[1757225346511,0.67029215,110710.0,110700.0,0.0034286]
[1757225346933,0.69743458,110710.0,110700.0,0.0034286]
[1757225347795,0.69743458,110710.0,110700.0,0.0044286]
[1757225348938,0.69743458,110710.0,110700.0,0.0012686]
[1757225350483,0.69743458,110710.0,110700.0,0.0034086]
[1757225351473,0.69843458,110710.0,110700.0,0.0034086]
[1757225351640,0.69943458,110710.0,110700.0,0.0034086]
[1757225353271,0.69943458,110710.0,110700.0,0.0002686]
[1757225354676,0.69947458,110710.0,110700.0,0.0002686]
[1757225354861,0.69947458,110710.0,110700.0,0.0034086]
[1757225363318,0.69947458,110710.0,110700.0,0.0055286]
[1757225367841,0.54979458,110710.0,110700.0,0.0055286]
[1757225368285,0.69947458,110710.0,110700.0,0.0055286]
[1757225383516,0.69947458,110710.0,110700.0,0.0005286]
[1757225383704,0.70159458,110710.0,110700.0,0.0005286]
[1757225384419,0.18068479,110690.0,110680.0,0.150661]
[1757225384645,0.33032479,110690.0,110680.0,0.15074536]
[1757225384864,0.33032479,110690.0,110680.0,0.15272536]
[1757225385748,0.33032479,110690.0,110680.0,0.15685536]
[1757225390513,0.18068479,110690.0,110680.0,0.15685536]
[1757225391333,0.18068479,110690.0,110680.0,0.25103011]
[1757225391703,0.18068479,110690.0,110680.0,0.76964316]
[1757225391929,0.18068339,110700.0,110690.0,0.02093882]
[1757225392167,0.18068339,110700.0,110690.0,0.14058481]
[1757225392376,0.18068339,110700.0,110690.0,0.4709096]
[1757225392692,0.18068339,110700.0,110690.0,0.49804984]
[1757225394305,0.18068339,110700.0,110690.0,0.80483832]
[1757225396419,0.18068339,110700.0,110690.0,0.80583832]
[1757225396618,0.3299127,110710.0,110690.0,0.80583832]
[1757225396849,0.18068338,110700.0,110690.0,0.80270832]
[1757225397022,0.18068338,110700.0,110690.0,0.62202353]
[1757225397546,0.18068338,110700.0,110690.0,0.62515353]
[1757225397739,0.18068338,110700.0,110690.0,0.80483832]
[1757225398605,0.18068338,110700.0,110690.0,0.80583832]
[1757225400524,0.18068338,110700.0,110690.0,0.62515353]
[1757225423898,0.29070322,110710.0,110690.0,0.62515353]
[1757225424160,0.18068338,110700.0,110690.0,0.62202353]
[1757225424744,0.18068338,110700.0,110690.0,0.62517353]
[1757225425709,0.18068338,110700.0,110690.0,0.62417353]
[1757225426758,0.18068338,110700.0,110690.0,0.62517353]
[1757225430334,0.28687923,110710.0,110690.0,0.62517353]
[1757225430572,0.18068338,110700.0,110690.0,0.62202353]
[1757225431167,0.18068338,110700.0,110690.0,0.62517353]
[1757225439825,0.18068338,110700.0,110690.0,0.58488505]
[1757225441742,0.18068338,110700.0,110690.0,0.31838505]
[1757225447701,0.18068338,110700.0,110690.0,0.58488505]
[1757225454849,0.18068338,110700.0,110690.0,0.76556984]
[1757225463558,0.18068338,110700.0,110690.0,0.74294984]
[1757225475604,0.18066847,110700.0,110690.0,0.7429453]
[1757225489647,0.18066847,110700.0,110690.0,0.5933053]
[1757225489808,0.18066847,110700.0,110690.0,0.7428253]
[1757225502430,0.33937968,110710.0,110690.0,0.7428253]
[1757225502631,0.18066847,110700.0,110690.0,0.7428253]
[1757225502843,0.18066847,110700.0,110690.0,0.71568506]
[1757225503045,0.18066847,110700.0,110690.0,0.7428253]
[1757225514966,0.18281847,110700.0,110690.0,0.7428253]
[1757225515472,0.18066847,110700.0,110690.0,0.7428253]
[1757225517664,0.18066847,110700.0,110690.0,1.06038035]
[1757225525737,0.18066847,110700.0,110690.0,0.7428253]
[1757225525942,0.18066847,110700.0,110690.0,1.06038035]
[1757225536156,0.18066847,110700.0,110690.0,0.7428253]
[1757225536334,0.18066847,110700.0,110690.0,1.06038035]
[1757225538260,0.18066847,110700.0,110690.0,0.7428253]
[1757225538393,0.18066847,110700.0,110690.0,1.06038035]
[1757225543245,0.18272847,110700.0,110690.0,1.05723035]
[1757225543451,0.18066847,110700.0,110690.0,1.06040035]
[1757225548589,0.18066847,110700.0,110690.0,1.06040035]
[1757225569207,0.18066847,110700.0,110690.0,0.7428453]
[1757225569409,0.18066847,110700.0,110690.0,1.06040035]
[1757225571359,0.18066847,110700.0,110690.0,0.7428453]
[1757225571592,0.18066847,110700.0,110690.0,1.06040035]
[1757225573797,0.18066847,110700.0,110690.0,0.5933253]
[1757225573980,0.18066847,110700.0,110690.0,1.06040035]
[1757225574157,0.18066847,110700.0,110690.0,0.91088035]
[1757225574362,0.18066847,110700.0,110690.0,1.06040035]
[1757225576382,0.18066847,110700.0,110690.0,0.7428453]
[1757225576583,0.18066847,110700.0,110690.0,1.06040035]
[1757225579470,0.18066847,110700.0,110690.0,0.7428453]
[1757225582373,0.18066847,110700.0,110690.0,0.5933253]
[1757225582587,0.18066847,110700.0,110690.0,0.7428453]
[1757225586385,0.18281847,110700.0,110690.0,0.31755906]
[1757225586589,0.18281847,110700.0,110690.0,0.31557906]